[Event "GrandPrix_29.05"]
[Site "Chess.com"]
[Date "2020.05.29"]
[Round "7"]
[White "Hrant_ChessMood"]
[Black "TimofeevAr"]
[Result "1/2-1/2"]
[WhiteElo "2822"]
[BlackElo "2669"]
[TimeControl "600+2"]
[EndTime "12:34:14 PDT"]
[Termination "Game drawn - insufficient material"]

1. d4 {[%clk 0:10:01.9]} 1... Nf6 {[%clk 0:09:59.7]} 2. c4 {[%clk 0:10:03]} 2...
g6 {[%clk 0:10:00.6]} 3. Nc3 {[%clk 0:09:59.2]} 3... d5 {[%clk 0:10:01.2]} 4.
cxd5 {[%clk 0:09:48.5]} 4... Nxd5 {[%clk 0:10:01.9]} 5. e4 {[%clk 0:09:50.4]}
5... Nb6 {[%clk 0:10:02.9]} 6. Nf3 {[%clk 0:09:36.8]} 6... Bg7 {[%clk
0:10:03.3]} 7. Be2 {[%clk 0:09:29.8]} 7... Bg4 {[%clk 0:10:03.1]} 8. Be3 {[%clk
0:09:28]} 8... O-O {[%clk 0:10:03.2]} 9. O-O {[%clk 0:09:00.4]} 9... Nc6 {[%clk
0:10:01.5]} 10. d5 {[%clk 0:08:51.3]} 10... Bxf3 {[%clk 0:10:00.6]} 11. gxf3
{[%clk 0:07:56.2]} 11... Ne5 {[%clk 0:09:55.8]} 12. Qb3 {[%clk 0:07:34]} 12...
Qd7 {[%clk 0:09:49.8]} 13. Kg2 {[%clk 0:07:27.2]} 13... c6 {[%clk 0:09:34.1]}
14. Rad1 {[%clk 0:07:22.9]} 14... cxd5 {[%clk 0:09:33.1]} 15. Nxd5 {[%clk
0:07:14.1]} 15... Nxd5 {[%clk 0:09:29.4]} 16. Rxd5 {[%clk 0:07:16]} 16... Qc7
{[%clk 0:09:24.5]} 17. Rc1 {[%clk 0:07:09.5]} 17... Nc6 {[%clk 0:09:24.7]} 18.
Bb5 {[%clk 0:06:48.6]} 18... a6 {[%clk 0:09:18.5]} 19. Bxc6 {[%clk 0:06:38.6]}
19... bxc6 {[%clk 0:09:19.3]} 20. Rdc5 {[%clk 0:06:05.9]} 20... Rab8 {[%clk
0:08:59.6]} 21. Qc4 {[%clk 0:05:58.9]} 21... Bxb2 {[%clk 0:08:35.5]} 22. Rxc6
{[%clk 0:05:43.9]} 22... Qe5 {[%clk 0:08:31.9]} 23. Rc2 {[%clk 0:05:29.9]} 23...
Rfd8 {[%clk 0:08:17.8]} 24. Rc5 {[%clk 0:05:08.4]} 24... Qe6 {[%clk 0:06:46.7]}
25. Qxe6 {[%clk 0:05:07.2]} 25... fxe6 {[%clk 0:06:47.8]} 26. Rc7 {[%clk
0:04:19.4]} 26... Kf7 {[%clk 0:06:34.6]} 27. Ra7 {[%clk 0:03:57.5]} 27... Bd4
{[%clk 0:06:33.1]} 28. Bxd4 {[%clk 0:03:54.5]} 28... Rxd4 {[%clk 0:06:34.2]} 29.
Rcc7 {[%clk 0:03:56.4]} 29... Re8 {[%clk 0:06:34.4]} 30. Rxa6 {[%clk 0:03:57.1]}
30... Rd2 {[%clk 0:06:31.3]} 31. Raa7 {[%clk 0:03:47.3]} 31... g5 {[%clk
0:06:28.3]} 32. a4 {[%clk 0:03:43.5]} 32... Kf6 {[%clk 0:06:24.9]} 33. a5 {[%clk
0:02:47.5]} 33... Ra2 {[%clk 0:06:24.3]} 34. Kg3 {[%clk 0:01:59.6]} 34... h5
{[%clk 0:06:22.3]} 35. Rc6 {[%clk 0:01:15]} 35... h4+ {[%clk 0:05:30.2]} 36. Kg4
{[%clk 0:01:15.9]} 36... Rxf2 {[%clk 0:05:30.3]} 37. Raa6 {[%clk 0:01:16.8]}
37... Rg2+ {[%clk 0:05:30.9]} 38. Kh3 {[%clk 0:01:16.3]} 38... Rf2 {[%clk
0:05:31.9]} 39. Rxe6+ {[%clk 0:01:16.5]} 39... Kf7 {[%clk 0:05:33]} 40. Kg4
{[%clk 0:01:10]} 40... Rxh2 {[%clk 0:05:10.9]} 41. Kxg5 {[%clk 0:01:06.6]} 41...
Rf2 {[%clk 0:04:25.2]} 42. Kf4 {[%clk 0:01:03.5]} 42... Rg8 {[%clk 0:04:08.4]}
43. Re5 {[%clk 0:00:56.6]} 43... Rg3 {[%clk 0:03:21.9]} 44. Rf5+ {[%clk
0:00:57.4]} 44... Kg7 {[%clk 0:03:23]} 45. Ke3 {[%clk 0:00:57.9]} 45... Ra2
{[%clk 0:03:23.5]} 46. Re6 {[%clk 0:00:39.1]} 46... Ra3+ {[%clk 0:03:17]} 47.
Kd4 {[%clk 0:00:33.3]} 47... Rgxf3 {[%clk 0:03:07.5]} 48. Rxe7+ {[%clk
0:00:33.6]} 48... Kg6 {[%clk 0:03:08.7]} 49. Re6+ {[%clk 0:00:34.4]} 49... Kg7
{[%clk 0:03:08.2]} 50. Rb5 {[%clk 0:00:18.9]} 50... h3 {[%clk 0:03:01.6]} 51.
Re7+ {[%clk 0:00:14.5]} 51... Rf7 {[%clk 0:02:48.8]} 52. Ree5 {[%clk 0:00:06.6]}
52... h2 {[%clk 0:02:39.5]} 53. Rh5 {[%clk 0:00:06.7]} 53... Rf2 {[%clk
0:02:34.8]} 54. Rbg5+ {[%clk 0:00:06.8]} 54... Kf7 {[%clk 0:02:30.8]} 55. Rh7+
{[%clk 0:00:05.6]} 55... Kf6 {[%clk 0:02:25.7]} 56. Rgh5 {[%clk 0:00:07]} 56...
Rfa2 {[%clk 0:01:53.9]} 57. R7h6+ {[%clk 0:00:06.4]} 57... Kg7 {[%clk
0:01:54.8]} 58. Rh7+ {[%clk 0:00:08.3]} 58... Kg6 {[%clk 0:01:56]} 59. R7h6+
{[%clk 0:00:05.2]} 59... Kg7 {[%clk 0:01:57.2]} 60. Rxh2 {[%clk 0:00:05.7]}
60... Ra4+ {[%clk 0:01:55.2]} 61. Ke3 {[%clk 0:00:04.6]} 61... Rxa5 {[%clk
0:01:45.5]} 62. Rh7+ {[%clk 0:00:05.8]} 62... Kg8 {[%clk 0:01:44.8]} 63. Rh8+
{[%clk 0:00:07]} 63... Kg7 {[%clk 0:01:45.8]} 64. R8h7+ {[%clk 0:00:07.8]} 64...
Kg8 {[%clk 0:01:46.9]} 65. Rh8+ {[%clk 0:00:09.2]} 65... Kg7 {[%clk 0:01:48.2]}
66. R2h7+ {[%clk 0:00:11.1]} 66... Kg6 {[%clk 0:01:49.2]} 67. Rd7 {[%clk
0:00:07.9]} 67... Ra7 {[%clk 0:01:30.9]} 68. Rxa7 {[%clk 0:00:05.6]} 68... Rxa7
{[%clk 0:01:31.2]} 69. Rf8 {[%clk 0:00:07.5]} 69... Rf7 {[%clk 0:01:31.6]} 70.
Re8 {[%clk 0:00:05.9]} 70... Kf6 {[%clk 0:01:29.3]} 71. e5+ {[%clk 0:00:05.1]}
71... Kf5 {[%clk 0:01:30.4]} 72. Kd4 {[%clk 0:00:05.7]} 72... Rd7+ {[%clk
0:01:31.2]} 73. Kc5 {[%clk 0:00:07.3]} 73... Rd1 {[%clk 0:01:31.5]} 74. Kc6
{[%clk 0:00:08.6]} 74... Rd2 {[%clk 0:01:31.4]} 75. Kc7 {[%clk 0:00:08.9]} 75...
Rd1 {[%clk 0:01:32.6]} 76. Kc6 {[%clk 0:00:08.6]} 76... Rd2 {[%clk 0:01:33.4]}
77. Re7 {[%clk 0:00:09.7]} 77... Rd1 {[%clk 0:01:34.3]} 78. e6 {[%clk 0:00:11]}
78... Kf6 {[%clk 0:01:33.8]} 79. Rd7 {[%clk 0:00:12.2]} 79... Rc1+ {[%clk
0:01:34.4]} 80. Kd6 {[%clk 0:00:13.3]} 80... Rd1+ {[%clk 0:01:35.2]} 81. Kc7
{[%clk 0:00:14.8]} 81... Rc1+ {[%clk 0:01:36.5]} 82. Kd6 {[%clk 0:00:14.6]}
82... Rd1+ {[%clk 0:01:37.5]} 83. Kc6 {[%clk 0:00:16.1]} 83... Rc1+ {[%clk
0:01:38.7]} 84. Kd5 {[%clk 0:00:16.9]} 84... Rd1+ {[%clk 0:01:39.9]} 85. Ke4
{[%clk 0:00:17.9]} 85... Re1+ {[%clk 0:01:40.6]} 86. Kd5 {[%clk 0:00:18.4]}
86... Rxe6 {[%clk 0:01:41.2]} 87. Rd6 {[%clk 0:00:19.2]} 87... Rxd6+ {[%clk
0:01:42.2]} 88. Kxd6 {[%clk 0:00:21.1]} 1/2-1/2

[Event "GrandPrix_29.05"]
[Site "Chess.com"]
[Date "2020.05.29"]
[Round "7"]
[White "Tormoz"]
[Black "Artur0208"]
[Result "1-0"]
[WhiteElo "2480"]
[BlackElo "2310"]
[TimeControl "600+2"]
[EndTime "12:34:17 PDT"]
[Termination "Tormoz won by resignation"]

1. d4 {[%clk 0:10:01.9]} 1... d5 {[%clk 0:09:53.2]} 2. Nf3 {[%clk 0:10:02.1]}
2... Nf6 {[%clk 0:09:52.2]} 3. c4 {[%clk 0:10:02.3]} 3... e6 {[%clk 0:09:52.3]}
4. g3 {[%clk 0:10:02.8]} 4... dxc4 {[%clk 0:09:52.3]} 5. Bg2 {[%clk 0:10:03.2]}
5... Nc6 {[%clk 0:09:53.2]} 6. Qa4 {[%clk 0:10:03.2]} 6... Bb4+ {[%clk
0:09:54.3]} 7. Bd2 {[%clk 0:10:03.7]} 7... Nd5 {[%clk 0:09:55.8]} 8. Bxb4 {[%clk
0:10:01.7]} 8... Nxb4 {[%clk 0:09:57.7]} 9. Nc3 {[%clk 0:10:02.3]} 9... Bd7
{[%clk 0:09:41.4]} 10. O-O {[%clk 0:09:48.8]} 10... a5 {[%clk 0:09:39.8]} 11.
Qd1 {[%clk 0:09:06.1]} 11... O-O {[%clk 0:09:40]} 12. a3 {[%clk 0:08:27.4]}
12... Nd5 {[%clk 0:09:38.7]} 13. Na4 {[%clk 0:08:25.1]} 13... Nce7 {[%clk
0:09:36]} 14. Nc5 {[%clk 0:08:18.5]} 14... Bc6 {[%clk 0:08:47]} 15. Ne5 {[%clk
0:08:09.2]} 15... b6 {[%clk 0:08:46.1]} 16. Nxc6 {[%clk 0:08:06.5]} 16... Nxc6
{[%clk 0:08:48]} 17. Na4 {[%clk 0:08:04.7]} 17... Qd6 {[%clk 0:08:26]} 18. Nc3
{[%clk 0:07:00.8]} 18... Nxc3 {[%clk 0:08:10.3]} 19. bxc3 {[%clk 0:07:02.7]}
19... a4 {[%clk 0:08:12.2]} 20. d5 {[%clk 0:06:55.7]} 20... Ne7 {[%clk
0:05:18.3]} 21. dxe6 {[%clk 0:06:53.4]} 21... Qxd1 {[%clk 0:05:16.8]} 22. Rfxd1
{[%clk 0:06:39.3]} 22... Rad8 {[%clk 0:05:18]} 23. exf7+ {[%clk 0:04:22.3]}
23... Kxf7 {[%clk 0:05:19.9]} 24. Rxd8 {[%clk 0:04:22.8]} 24... Rxd8 {[%clk
0:05:19.4]} 25. Rb1 {[%clk 0:04:24.4]} 25... Rd2 {[%clk 0:05:15.4]} 26. Rb4
{[%clk 0:04:18.4]} 26... Rxe2 {[%clk 0:05:13.8]} 27. Rxc4 {[%clk 0:03:23.1]}
27... Re1+ {[%clk 0:05:13.9]} 28. Bf1 {[%clk 0:03:23.7]} 28... Nd5 {[%clk
0:05:15.8]} 29. Kg2 {[%clk 0:03:16.8]} 29... Ke6 {[%clk 0:03:10]} 30. Rc6+
{[%clk 0:02:39.5]} 30... Kd7 {[%clk 0:02:58.3]} 31. Bb5 {[%clk 0:02:40.1]} 31...
Kd8 {[%clk 0:02:41.5]} 32. Bxa4 {[%clk 0:02:21.6]} 32... Ra1 {[%clk 0:02:16]}
33. Bc2 {[%clk 0:02:16.2]} 33... g6 {[%clk 0:00:39.9]} 34. Rc4 {[%clk
0:01:18.1]} 34... c5 {[%clk 0:00:08.9]} 35. Ra4 {[%clk 0:01:09.1]} 35... Nxc3
{[%clk 0:00:04.9]} 36. Ra8+ {[%clk 0:01:09.5]} 36... Ke7 {[%clk 0:00:06.2]} 37.
Ra7+ {[%clk 0:01:11]} 37... Kf6 {[%clk 0:00:07.7]} 38. Rxh7 {[%clk 0:01:11.7]}
38... Ra2 {[%clk 0:00:09.3]} 39. Bb3 {[%clk 0:01:01.4]} 39... Rxa3 {[%clk
0:00:10.2]} 40. Rf7+ {[%clk 0:01:01.6]} 40... Ke5 {[%clk 0:00:11.7]} 41. Bc2
{[%clk 0:00:57.4]} 41... b5 {[%clk 0:00:05.8]} 42. Bxg6 {[%clk 0:00:55.6]} 42...
b4 {[%clk 0:00:07.3]} 43. h4 {[%clk 0:00:30.7]} 43... b3 {[%clk 0:00:08.5]} 44.
h5 {[%clk 0:00:31.6]} 44... c4 {[%clk 0:00:06.5]} 45. h6 {[%clk 0:00:30.1]}
45... Ra8 {[%clk 0:00:07.4]} 46. h7 {[%clk 0:00:30.7]} 46... Kd4 {[%clk
0:00:07.3]} 47. Rg7 {[%clk 0:00:29.6]} 47... Rh8 {[%clk 0:00:02.9]} 48. Rg8
{[%clk 0:00:30.1]} 48... Rxh7 {[%clk 0:00:04.3]} 49. Bxh7 {[%clk 0:00:31.2]}
49... Nd5 {[%clk 0:00:04.5]} 50. Rb8 {[%clk 0:00:24.5]} 50... Kc5 {[%clk
0:00:04.7]} 51. g4 {[%clk 0:00:13.8]} 51... Nf4+ {[%clk 0:00:04.4]} 52. Kg3
{[%clk 0:00:13.5]} 52... Ne2+ {[%clk 0:00:03.5]} 53. Kh4 {[%clk 0:00:10.7]}
53... Kd4 {[%clk 0:00:02.7]} 54. g5 {[%clk 0:00:11]} 54... Nf4 {[%clk 0:00:04]}
55. g6 {[%clk 0:00:10.1]} 55... Ne6 {[%clk 0:00:04.8]} 56. Bg8 {[%clk
0:00:08.5]} 56... Ng7 {[%clk 0:00:05.2]} 57. Kg5 {[%clk 0:00:09.1]} 57... Kc3
{[%clk 0:00:04]} 58. Kh6 {[%clk 0:00:08.2]} 58... Nf5+ {[%clk 0:00:05.3]} 59.
Kg5 {[%clk 0:00:08.6]} 59... Ng7 {[%clk 0:00:05.2]} 60. Bxc4 {[%clk 0:00:08]}
60... Kxc4 {[%clk 0:00:06]} 61. Kf6 {[%clk 0:00:09.3]} 61... Nh5+ {[%clk
0:00:06.8]} 62. Kf7 {[%clk 0:00:10.6]} 62... Kc3 {[%clk 0:00:07.1]} 63. f4
{[%clk 0:00:11.5]} 63... b2 {[%clk 0:00:08.4]} 64. f5 {[%clk 0:00:12.5]} 64...
Kc2 {[%clk 0:00:08.6]} 65. f6 {[%clk 0:00:13.5]} 65... b1=Q {[%clk 0:00:09.9]}
66. Rxb1 {[%clk 0:00:14.3]} 66... Kxb1 {[%clk 0:00:11.8]} 67. g7 {[%clk
0:00:15.6]} 67... Nxf6 {[%clk 0:00:13.1]} 68. Kxf6 {[%clk 0:00:16.5]} 1-0

[Event "GrandPrix_29.05"]
[Site "Chess.com"]
[Date "2020.05.29"]
[Round "7"]
[White "Igrok3069"]
[Black "Sam_ChessMood"]
[Result "1/2-1/2"]
[WhiteElo "2672"]
[BlackElo "2616"]
[TimeControl "600+2"]
[EndTime "12:34:19 PDT"]
[Termination "Game drawn by agreement"]

1. d4 {[%clk 0:10:01.9]} 1... Nf6 {[%clk 0:10:00.2]} 2. Nf3 {[%clk 0:10:02]}
2... d5 {[%clk 0:09:59.8]} 3. c4 {[%clk 0:10:00.3]} 3... e6 {[%clk 0:10:00.9]}
4. Nc3 {[%clk 0:09:46.8]} 4... Be7 {[%clk 0:10:01.2]} 5. Bf4 {[%clk 0:09:46.1]}
5... O-O {[%clk 0:10:01.3]} 6. e3 {[%clk 0:09:43]} 6... c5 {[%clk 0:10:02.1]} 7.
dxc5 {[%clk 0:09:42.4]} 7... Bxc5 {[%clk 0:10:03.1]} 8. a3 {[%clk 0:09:42.8]}
8... Nc6 {[%clk 0:10:02.6]} 9. Qc2 {[%clk 0:09:43.1]} 9... Qa5 {[%clk
0:10:01.3]} 10. Rd1 {[%clk 0:09:41.6]} 10... Rd8 {[%clk 0:09:52.2]} 11. Nd2
{[%clk 0:08:25.8]} 11... d4 {[%clk 0:09:50.4]} 12. Nb3 {[%clk 0:08:22.7]} 12...
Qb6 {[%clk 0:09:51.3]} 13. Na4 {[%clk 0:07:15]} 13... Bb4+ {[%clk 0:09:50.7]}
14. axb4 {[%clk 0:07:14.4]} 14... Qxb4+ {[%clk 0:09:52.2]} 15. Nd2 {[%clk
0:07:15.4]} 15... Qa5 {[%clk 0:09:49.5]} 16. Qb3 {[%clk 0:06:57.3]} 16... e5
{[%clk 0:09:45]} 17. Bg5 {[%clk 0:06:46.6]} 17... Nb4 {[%clk 0:09:44]} 18. Bxf6
{[%clk 0:06:36.8]} 18... gxf6 {[%clk 0:09:43.3]} 19. Be2 {[%clk 0:06:17.4]}
19... Bd7 {[%clk 0:09:39.1]} 20. Ra1 {[%clk 0:05:55.9]} 20... dxe3 {[%clk
0:09:38.9]} 21. fxe3 {[%clk 0:05:35.8]} 21... b5 {[%clk 0:09:39.2]} 22. O-O
{[%clk 0:05:19.1]} 22... bxa4 {[%clk 0:09:38.9]} 23. Qc3 {[%clk 0:05:20.5]}
23... f5 {[%clk 0:09:35.9]} 24. Nf3 {[%clk 0:05:14.7]} 24... f6 {[%clk
0:09:36.8]} 25. Nh4 {[%clk 0:05:14.4]} 25... Nc6 {[%clk 0:09:37.1]} 26. Qc2
{[%clk 0:04:28.9]} 26... Qc5 {[%clk 0:06:52.1]} 27. Nxf5 {[%clk 0:03:57.5]}
27... Bxf5 {[%clk 0:06:51.6]} 28. Qxf5 {[%clk 0:03:58.5]} 28... Qxe3+ {[%clk
0:06:52.6]} 29. Qf2 {[%clk 0:03:59.5]} 29... Qxf2+ {[%clk 0:05:57.5]} 30. Rxf2
{[%clk 0:04:01.4]} 30... Nd4 {[%clk 0:05:56.9]} 31. Rxa4 {[%clk 0:03:55.7]}
31... e4 {[%clk 0:05:51.4]} 32. Bh5 {[%clk 0:03:35.8]} 32... e3 {[%clk 0:05:02]}
33. Rf1 {[%clk 0:01:23.6]} 33... a5 {[%clk 0:04:52.9]} 34. Ra3 {[%clk
0:01:05.8]} 34... Nc2 {[%clk 0:04:35.5]} 35. Rc3 {[%clk 0:01:03.2]} 35... Rd2
{[%clk 0:04:36.1]} 36. Rc1 {[%clk 0:00:53.7]} 36... Nd4 {[%clk 0:03:22.7]} 37.
Rxe3 {[%clk 0:00:54.4]} 37... Rxb2 {[%clk 0:03:07.5]} 38. c5 {[%clk 0:00:55.3]}
38... Rc8 {[%clk 0:02:45.3]} 39. Ra3 {[%clk 0:00:32.9]} 39... Nb3 {[%clk
0:01:55]} 40. Bg4 {[%clk 0:00:24.6]} 40... Rxc5 {[%clk 0:00:59.9]} 41. Rxc5
{[%clk 0:00:24]} 41... Nxc5 {[%clk 0:01:00.9]} 42. Rxa5 {[%clk 0:00:25.5]} 42...
Ne4 {[%clk 0:01:01.4]} 43. h4 {[%clk 0:00:23]} 43... Nd6 {[%clk 0:00:54.3]} 44.
Ra6 {[%clk 0:00:21.9]} 44... Rd2 {[%clk 0:00:53.7]} 45. Ra7 {[%clk 0:00:18.5]}
45... f5 {[%clk 0:00:41.5]} 46. Bf3 {[%clk 0:00:17]} 46... Ne4 {[%clk
0:00:37.9]} 47. Kh2 {[%clk 0:00:17.6]} 47... Rd4 {[%clk 0:00:29.3]} 48. Ra5
{[%clk 0:00:17.3]} 48... Nd2 {[%clk 0:00:24.1]} 49. Kg3 {[%clk 0:00:15.5]} 49...
Nxf3 {[%clk 0:00:13.4]} 50. gxf3 {[%clk 0:00:16.5]} 50... Kg7 {[%clk 0:00:11.2]}
51. Rxf5 {[%clk 0:00:16.8]} 51... Ra4 {[%clk 0:00:11.9]} 52. Rb5 {[%clk
0:00:16.4]} 52... Kg6 {[%clk 0:00:11.1]} 53. Rb6+ {[%clk 0:00:16.4]} 53... Kg7
{[%clk 0:00:11.5]} 54. f4 {[%clk 0:00:15.2]} 54... Ra5 {[%clk 0:00:10.6]} 55.
Kg4 {[%clk 0:00:13.7]} 55... h5+ {[%clk 0:00:11.5]} 56. Kf3 {[%clk 0:00:14.8]}
56... Ra4 {[%clk 0:00:12.6]} 57. Ke3 {[%clk 0:00:15.1]} 57... Rc4 {[%clk
0:00:09.5]} 58. Rb5 {[%clk 0:00:14.5]} 58... Kg6 {[%clk 0:00:10.7]} 59. Rg5+
{[%clk 0:00:15.2]} 59... Kh6 {[%clk 0:00:12.1]} 60. Rg1 {[%clk 0:00:14.6]} 60...
Rc3+ {[%clk 0:00:11.9]} 61. Ke4 {[%clk 0:00:15.6]} 61... Rh3 {[%clk 0:00:12]}
62. f5 {[%clk 0:00:15.5]} 62... Rxh4+ {[%clk 0:00:12.9]} 63. Ke5 {[%clk
0:00:16.7]} 63... Ra4 {[%clk 0:00:12.8]} 64. f6 {[%clk 0:00:13.1]} 64... Ra5+
{[%clk 0:00:13.9]} 65. Ke6 {[%clk 0:00:14.1]} 65... Ra6+ {[%clk 0:00:15.2]} 66.
Ke7 {[%clk 0:00:14.6]} 66... Ra7+ {[%clk 0:00:16.5]} 67. Ke6 {[%clk 0:00:15.7]}
67... Ra6+ {[%clk 0:00:17.7]} 68. Ke5 {[%clk 0:00:16.1]} 1/2-1/2

[Event "GrandPrix_29.05"]
[Site "Chess.com"]
[Date "2020.05.29"]
[Round "7"]
[White "ninullia"]
[Black "Saxar85"]
[Result "1/2-1/2"]
[WhiteElo "2328"]
[BlackElo "2461"]
[TimeControl "600+2"]
[EndTime "12:34:20 PDT"]
[Termination "Game drawn - insufficient material"]

1. d4 {[%clk 0:09:53]} 1... d6 {[%clk 0:10:00.2]} 2. Nf3 {[%clk 0:09:52.2]} 2...
g6 {[%clk 0:10:00.3]} 3. c4 {[%clk 0:09:47.2]} 3... Bg7 {[%clk 0:10:00.3]} 4.
Nc3 {[%clk 0:09:47.2]} 4... Bg4 {[%clk 0:10:00.2]} 5. g3 {[%clk 0:09:48]} 5...
Bxf3 {[%clk 0:10:00.3]} 6. exf3 {[%clk 0:09:49.9]} 6... e6 {[%clk 0:10:01.3]} 7.
Bh3 {[%clk 0:09:48.8]} 7... d5 {[%clk 0:09:44.3]} 8. cxd5 {[%clk 0:09:44.9]}
8... exd5 {[%clk 0:09:45]} 9. Qb3 {[%clk 0:09:02.3]} 9... Ne7 {[%clk 0:09:43.1]}
10. Qxb7 {[%clk 0:08:43.9]} 10... Nbc6 {[%clk 0:09:42.7]} 11. Bg5 {[%clk
0:08:27.3]} 11... O-O {[%clk 0:08:45.2]} 12. O-O {[%clk 0:08:23.5]} 12... Rb8
{[%clk 0:08:28.9]} 13. Qa6 {[%clk 0:07:57.6]} 13... Nxd4 {[%clk 0:08:10.9]} 14.
Kg2 {[%clk 0:07:30.1]} 14... h6 {[%clk 0:07:42]} 15. Bxe7 {[%clk 0:07:17.5]}
15... Qxe7 {[%clk 0:07:42.3]} 16. Nxd5 {[%clk 0:07:19]} 16... Qe5 {[%clk
0:06:57.2]} 17. Ne3 {[%clk 0:06:50.5]} 17... Rxb2 {[%clk 0:06:32.2]} 18. Rfe1
{[%clk 0:06:51.3]} 18... Qc5 {[%clk 0:05:23.1]} 19. Rac1 {[%clk 0:06:42.2]}
19... Qb6 {[%clk 0:05:22.6]} 20. Qc4 {[%clk 0:06:21.7]} 20... c6 {[%clk
0:04:55.1]} 21. Bd7 {[%clk 0:05:55.9]} 21... Rd8 {[%clk 0:03:57.8]} 22. Bh3
{[%clk 0:05:48.3]} 22... Qb5 {[%clk 0:03:47.5]} 23. a4 {[%clk 0:05:14.7]} 23...
Qxc4 {[%clk 0:03:45.6]} 24. Rxc4 {[%clk 0:05:15.7]} 24... a5 {[%clk 0:03:12.5]}
25. f4 {[%clk 0:05:12.9]} 25... Rb4 {[%clk 0:02:44.9]} 26. f5 {[%clk 0:05:09.5]}
26... g5 {[%clk 0:02:40.8]} 27. Rec1 {[%clk 0:04:53.2]} 27... h5 {[%clk
0:02:37.1]} 28. Kh1 {[%clk 0:04:22.1]} 28... Rdb8 {[%clk 0:02:33.5]} 29. Bg2
{[%clk 0:04:16.2]} 29... Rb1 {[%clk 0:02:22.2]} 30. h3 {[%clk 0:04:13.9]} 30...
R8b4 {[%clk 0:02:06.3]} 31. Rxb1 {[%clk 0:04:07.4]} 31... Rxb1+ {[%clk
0:02:06.8]} 32. Kh2 {[%clk 0:04:09.1]} 32... Rb2 {[%clk 0:02:05.4]} 33. Kg1
{[%clk 0:03:27.3]} 33... Rb4 {[%clk 0:01:50.1]} 34. Rxb4 {[%clk 0:02:25.4]}
34... axb4 {[%clk 0:01:50.7]} 35. a5 {[%clk 0:02:27.3]} 35... b3 {[%clk
0:01:51.5]} 36. Nc4 {[%clk 0:02:28.2]} 36... c5 {[%clk 0:01:34.3]} 37. a6 {[%clk
0:01:54]} 37... Nb5 {[%clk 0:01:34.3]} 38. Na3 {[%clk 0:01:40.4]} 38... b2
{[%clk 0:01:09.9]} 39. Be4 {[%clk 0:01:35]} 39... Na7 {[%clk 0:01:08.8]} 40. Kf1
{[%clk 0:01:32.8]} 40... Kf8 {[%clk 0:01:08.1]} 41. Ke2 {[%clk 0:01:34]} 41...
Ke7 {[%clk 0:01:08]} 42. Kd2 {[%clk 0:01:32.9]} 42... Kd6 {[%clk 0:01:05.6]} 43.
Kc2 {[%clk 0:01:31.5]} 43... Bd4 {[%clk 0:00:56.6]} 44. f3 {[%clk 0:01:26.6]}
44... Kc7 {[%clk 0:00:43.5]} 45. Nc4 {[%clk 0:01:26]} 45... Nb5 {[%clk
0:00:42.2]} 46. Nxb2 {[%clk 0:01:16.7]} 46... Bxb2 {[%clk 0:00:23.7]} 47. Kxb2
{[%clk 0:01:17.9]} 47... Kb6 {[%clk 0:00:24.7]} 48. f6 {[%clk 0:01:04.7]} 48...
Kxa6 {[%clk 0:00:21.6]} 49. Bg6 {[%clk 0:00:19.8]} 49... Nd6 {[%clk 0:00:21.5]}
50. Bxh5 {[%clk 0:00:21.3]} 50... Kb6 {[%clk 0:00:22.5]} 51. h4 {[%clk
0:00:12.3]} 51... gxh4 {[%clk 0:00:22.6]} 52. gxh4 {[%clk 0:00:14.2]} 52... Kc6
{[%clk 0:00:18.5]} 53. Bg4 {[%clk 0:00:15.4]} 53... Kd5 {[%clk 0:00:16]} 54. h5
{[%clk 0:00:16.3]} 54... Ke5 {[%clk 0:00:16.8]} 55. h6 {[%clk 0:00:11.4]} 55...
Kxf6 {[%clk 0:00:17.6]} 56. Bh5 {[%clk 0:00:12.5]} 56... Nf5 {[%clk 0:00:09.7]}
57. h7 {[%clk 0:00:12.8]} 57... Kg7 {[%clk 0:00:10.8]} 58. Bxf7 {[%clk
0:00:11.8]} 58... Kxh7 {[%clk 0:00:11.8]} 59. Kc3 {[%clk 0:00:12]} 59... Kg7
{[%clk 0:00:12.1]} 60. Bd5 {[%clk 0:00:12.5]} 60... Nd6 {[%clk 0:00:13.1]} 61.
Be6 {[%clk 0:00:09.8]} 61... Kf6 {[%clk 0:00:14.2]} 62. Bg8 {[%clk 0:00:10.5]}
62... Ke5 {[%clk 0:00:15.3]} 63. Kd3 {[%clk 0:00:09.8]} 63... Kf4 {[%clk
0:00:16.3]} 64. Ke2 {[%clk 0:00:11.1]} 64... Nf5 {[%clk 0:00:16.9]} 65. Kd3
{[%clk 0:00:10.9]} 65... Nd6 {[%clk 0:00:15.7]} 66. Ke2 {[%clk 0:00:12.1]} 66...
Nf5 {[%clk 0:00:15.7]} 67. Kd3 {[%clk 0:00:13.1]} 67... Kxf3 {[%clk 0:00:15.3]}
68. Kc4 {[%clk 0:00:13.3]} 68... Ne7 {[%clk 0:00:15.8]} 69. Kxc5 {[%clk
0:00:14]} 1/2-1/2